Workbook

Sheet 东莞市水务集团净水有限公司2024年电气配件及小型设备采购清单
A1: 东莞市水务集团净水有限公司2025年电气配件及小型设备暂定采购清单及预算
A2: 序号 | B2: 物资重要程度 | C2: 物资名称 | D2: 物资类别 | E2: 推荐品牌 | F2: 规格型号 | G2: 石鼓暂定数量 | H2: 樟村暂定数量 | I2: 莞水暂定数量 | J2: 合计暂定数量 | K2: 单位 | L2: 不含税预算综合单价（元） | M2: 石鼓不含税预算小计（元） | N2: 樟村不含税预算小计（元） | O2: 莞水不含税预算小计（元） | P2: 不含税预算总计（元） | Q2: 备注
A3: 1 | B3: ▲ | C3: 24V开关电源 | D3: 电气配件 | E3: 明纬/施耐德/欧姆龙 | F3: 24V 10A 导轨式 | G3: 1 | H3: 0 | I3: 1 | J3: =G3+H3+I3 -> 2 | K3: 套 | L3: 198.23 | M3: =L3*G3 -> 198.23 | N3: =L3*H3 -> 0.00 | O3: =I3*L3 -> 198.23 | P3: =M3+N3+O3 -> 396.46
A4: 2 | B4: ▲ | C4: 24V开关电源 | D4: 电气配件 | E4: 明纬/施耐德/欧姆龙 | F4: DR-60-24 24V 2.5A 导轨式 | G4: 1 | H4: 0 | I4: 1 | J4: =G4+H4+I4 -> 2 | K4: 套 | L4: 26.55 | M4: 26.55 | N4: 0.00 | O4: =I4*L4 -> 26.55 | P4: =M4+N4+O4 -> 53.10
A5: 3 | B5: ▲ | C5: 24V开关电源 | D5: 电气配件 | E5: 明纬/施耐德/欧姆龙 | F5: 24V 5A 导轨式 | G5: 1 | H5: 0 | I5: 1 | J5: 2 | K5: 套 | L5: 58.41 | M5: 58.41 | N5: 0.00 | O5: 58.41 | P5: 116.82
A6: 4 | B6: ▲ | C6: 按钮开关 | D6: 电气配件 | E6: 正泰/施耐德/德力西 | F6: 任意颜色 常开 220V | G6: 4 | H6: 1 | I6: 1 | J6: 6 | K6: 个 | L6: 4.47 | M6: 17.88 | N6: 4.47 | O6: 4.47 | P6: 26.82
A7: 5 | B7: ▲ | C7: 按钮开关 | D7: 电气配件 | E7: 正泰/施耐德/德力西 | F7: 任意颜色 常开 24V DC | G7: 4 | H7: 1 | I7: 1 | J7: 6 | K7: 个 | L7: 7.96 | M7: 31.84 | N7: 7.96 | O7: 7.96 | P7: 47.76
A8: 6 | B8: ▲ | C8: 玻璃熔断器 | D8: 电气配件 | E8: 正泰/德力西/西门子 | F8: 2A 任意尺寸 | G8: 4 | H8: 1 | I8: 2 | J8: 7 | K8: 个 | L8: 1.24 | M8: 4.96 | N8: 1.24 | O8: 2.48 | P8: 8.68
A9: 7 | B9: ▲ | C9: 玻璃熔断器 | D9: 电气配件 | E9: 正泰/德力西/西门子 | F9: 4A 任意尺寸 | G9: 4 | H9: 1 | I9: 2 | J9: 7 | K9: 个 | L9: 1.39 | M9: 5.56 | N9: 1.39 | O9: 2.78 | P9: 9.73
A10: 8 | B10: ▲ | C10: 玻璃熔断器 | D10: 电气配件 | E10: 正泰/德力西/西门子 | F10: 6A 任意尺寸 | G10: 4 | H10: 1 | I10: 2 | J10: 7 | K10: 个 | L10: 1.65 | M10: 6.60 | N10: 1.65 | O10: 3.30 | P10: 11.55
A11: 9 | B11: ▲ | C11: 玻璃熔断器 | D11: 电气配件 | E11: 正泰/德力西/西门子 | F11: 8A 任意尺寸 | G11: 4 | H11: 1 | I11: 2 | J11: 7 | K11: 个 | L11: 1.65 | M11: 6.60 | N11: 1.65 | O11: 3.30 | P11: 11.55
A12: 10 | B12: ▲ | C12: 玻璃熔断器 | D12: 电气配件 | E12: 正泰/德力西/西门子 | F12: 10A 任意尺寸 | G12: 4 | H12: 1 | I12: 2 | J12: 7 | K12: 个 | L12: 1.65 | M12: 6.60 | N12: 1.65 | O12: 3.30 | P12: 11.55
A13: 11 | B13: ▲ | C13: 玻璃熔断器 | D13: 电气配件 | E13: 正泰/德力西/西门子 | F13: 16A 任意尺寸 | G13: 5 | H13: 0 | I13: 2 | J13: 7 | K13: 个 | L13: 1.65 | M13: 8.25 | N13: 0.00 | O13: 3.30 | P13: 11.55
A14: 12 | B14: ▲ | C14: 玻璃熔断器 | D14: 电气配件 | E14: 正泰/德力西/西门子 | F14: 25A 任意尺寸 | G14: 4 | H14: 1 | I14: 2 | J14: 7 | K14: 个 | L14: 1.94 | M14: 7.76 | N14: 1.94 | O14: 3.88 | P14: 13.58
A15: 13 | B15: ▲ | C15: 玻璃熔断器 | D15: 电气配件 | E15: 正泰/德力西/西门子 | F15: 32A 任意尺寸 | G15: 4 | H15: 1 | I15: 2 | J15: 7 | K15: 个 | L15: 1.94 | M15: 7.76 | N15: 1.94 | O15: 3.88 | P15: 13.58
A16: 14 | B16: ▲ | C16: 玻璃熔断器 | D16: 电气配件 | E16: 正泰/德力西/西门子 | F16: 40A 任意尺寸 | G16: 2 | H16: 1 | I16: 2 | J16: 5 | K16: 个 | L16: 2.91 | M16: 5.82 | N16: 2.91 | O16: 5.82 | P16: 14.55
A17: 15 | B17: ▲ | C17: 玻璃熔断器 | D17: 电气配件 | E17: 正泰/德力西/西门子 | F17: 50A 任意尺寸 | G17: 2 | H17: 1 | I17: 2 | J17: 5 | K17: 个 | L17: 2.91 | M17: 5.82 | N17: 2.91 | O17: 5.82 | P17: 14.55
A18: 16 | B18: ▲ | C18: 玻璃熔断器 | D18: 电气配件 | E18: 正泰/德力西/西门子 | F18: 63A 任意尺寸 | G18: 2 | H18: 1 | I18: 2 | J18: 5 | K18: 个 | L18: 2.91 | M18: 5.82 | N18: 2.91 | O18: 5.82 | P18: 14.55
A19: 17 | B19: ▲ | C19: 玻璃熔断器底座 | D19: 电气配件 | E19: 正泰/德力西/西门子 | F19: 任意尺寸 | G19: 4 | H19: 1 | I19: 2 | J19: 7 | K19: 个 | L19: 8.75 | M19: 35.00 | N19: 8.75 | O19: 17.50 | P19: 61.25
A20: 18 | B20: ▲ | C20: 磁性开关 | D20: 电气配件 | E20: 正泰/施耐德/德力西 | F20: 电子式/触点式/弹簧式 | G20: 3 | H20: 1 | I20: 2 | J20: 6 | K20: 个 | L20: 31.25 | M20: 93.75 | N20: 31.25 | O20: 62.50 | P20: 187.50
A21: 19 | B21: ▲ | C21: 带指示灯按钮开关 | D21: 电气配件 | E21: 正泰/施耐德/德力西 | F21: 任意颜色 常开 220V | G21: 4 | H21: 1 | I21: 2 | J21: 7 | K21: 个 | L21: 7.27 | M21: 29.08 | N21: 7.27 | O21: 14.54 | P21: 50.89
A22: 20 | B22: ▲ | C22: 带指示灯按钮开关 | D22: 电气配件 | E22: 正泰/施耐德/德力西 | F22: 任意颜色 常开 24V DC | G22: 4 | H22: 1 | I22: 2 | J22: 7 | K22: 个 | L22: 7.27 | M22: 29.08 | N22: 7.27 | O22: 14.54 | P22: 50.89
A23: 21 | B23: ▲ | C23: 刀型陶瓷熔断器 | D23: 电气配件 | E23: 正泰/德力西/西门子 | F23: 10A 任意尺寸 | G23: 4 | H23: 1 | I23: 2 | J23: 7 | K23: 个 | L23: 8.48 | M23: 33.92 | N23: 8.48 | O23: 16.96 | P23: 59.36
A24: 22 | B24: ▲ | C24: 刀型陶瓷熔断器 | D24: 电气配件 | E24: 正泰/德力西/西门子 | F24: 16A 任意尺寸 | G24: 4 | H24: 1 | I24: 2 | J24: 7 | K24: 个 | L24: 8.21 | M24: 32.84 | N24: 8.21 | O24: 16.42 | P24: 57.47
A25: 23 | B25: ▲ | C25: 刀型陶瓷熔断器 | D25: 电气配件 | E25: 正泰/德力西/西门子 | F25: 20A 任意尺寸 | G25: 4 | H25: 1 | I25: 1 | J25: 6 | K25: 个 | L25: 8.21 | M25: 32.84 | N25: 8.21 | O25: 8.21 | P25: 49.26
A26: 24 | B26: ▲ | C26: 刀型陶瓷熔断器 | D26: 电气配件 | E26: 正泰/德力西/西门子 | F26: 25A 任意尺寸 | G26: 4 | H26: 1 | I26: 1 | J26: 6 | K26: 个 | L26: 8.21 | M26: 32.84 | N26: 8.21 | O26: 8.21 | P26: 49.26
A27: 25 | B27: ▲ | C27: 刀型陶瓷熔断器 | D27: 电气配件 | E27: 正泰/德力西/西门子 | F27: 32A 任意尺寸 | G27: 2 | H27: 1 | I27: 1 | J27: 4 | K27: 个 | L27: 8.21 | M27: 16.42 | N27: 8.21 | O27: 8.21 | P27: 32.84
A28: 26 | B28: ▲ | C28: 刀型陶瓷熔断器 | D28: 电气配件 | E28: 正泰/德力西/西门子 | F28: 40A 任意尺寸 | G28: 2 | H28: 1 | I28: 1 | J28: 4 | K28: 个 | L28: 8.21 | M28: 16.42 | N28: 8.21 | O28: 8.21 | P28: 32.84
A29: 27 | B29: ▲ | C29: 刀型陶瓷熔断器 | D29: 电气配件 | E29: 正泰/德力西/西门子 | F29: 50A 任意尺寸 | G29: 1 | H29: 0 | I29: 1 | J29: 2 | K29: 个 | L29: 8.21 | M29: 8.21 | N29: 0.00 | O29: 8.21 | P29: 16.42
A30: 28 | B30: ▲ | C30: 刀型陶瓷熔断器 | D30: 电气配件 | E30: 正泰/德力西/西门子 | F30: 63A 任意尺寸 | G30: 1 | H30: 0 | I30: 1 | J30: 2 | K30: 个 | L30: 7.84 | M30: 7.84 | N30: 0.00 | O30: 7.84 | P30: 15.68
A31: 29 | B31: ▲ | C31: 刀型陶瓷熔断器 | D31: 电气配件 | E31: 正泰/德力西/西门子 | F31: 80A 任意尺寸 | G31: 1 | H31: 0 | I31: 1 | J31: 2 | K31: 个 | L31: 7.84 | M31: 7.84 | N31: 0.00 | O31: 7.84 | P31: 15.68
A32: 30 | B32: ▲ | C32: 刀型陶瓷熔断器 | D32: 电气配件 | E32: 正泰/德力西/西门子 | F32: 100A 任意尺寸 | G32: 1 | H32: 0 | I32: 1 | J32: 2 | K32: 个 | L32: 7.84 | M32: 7.84 | N32: 0.00 | O32: 7.84 | P32: 15.68
A33: 31 | B33: ▲ | C33: 刀型陶瓷熔断器 | D33: 电气配件 | E33: 正泰/德力西/西门子 | F33: 125A 任意尺寸 | G33: 1 | H33: 0 | I33: 1 | J33: 2 | K33: 个 | L33: 7.84 | M33: 7.84 | N33: 0.00 | O33: 7.84 | P33: 15.68
A34: 32 | B34: ▲ | C34: 刀型陶瓷熔断器 | D34: 电气配件 | E34: 正泰/德力西/西门子 | F34: 160A 任意尺寸 | G34: 1 | H34: 0 | I34: 1 | J34: 2 | K34: 个 | L34: 7.84 | M34: 7.84 | N34: 0.00 | O34: 7.84 | P34: 15.68
A35: 33 | B35: ▲ | C35: 刀型陶瓷熔断器 | D35: 电气配件 | E35: 正泰/德力西/西门子 | F35: 200A 任意尺寸 | G35: 1 | H35: 0 | I35: 1 | J35: 2 | K35: 个 | L35: 16.97 | M35: 16.97 | N35: 0.00 | O35: 16.97 | P35: 33.94
A36: 34 | B36: ▲ | C36: 刀型陶瓷熔断器 | D36: 电气配件 | E36: 正泰/德力西/西门子 | F36: 250A 任意尺寸 | G36: 1 | H36: 0 | I36: 1 | J36: 2 | K36: 个 | L36: 16.97 | M36: 16.97 | N36: 0.00 | O36: 16.97 | P36: 33.94
A37: 35 | B37: ▲ | C37: 刀型陶瓷熔断器 | D37: 电气配件 | E37: 正泰/德力西/西门子 | F37: 300A 任意尺寸 | G37: 1 | H37: 0 | I37: 1 | J37: 2 | K37: 个 | L37: 25.90 | M37: 25.90 | N37: 0.00 | O37: 25.90 | P37: 51.80
A38: 36 | B38: ▲ | C38: 刀型陶瓷熔断器 | D38: 电气配件 | E38: 正泰/德力西/西门子 | F38: 400A 任意尺寸 | G38: 1 | H38: 0 | I38: 1 | J38: 2 | K38: 个 | L38: 25.90 | M38: 25.90 | N38: 0.00 | O38: 25.90 | P38: 51.80
A39: 37 | B39: ▲ | C39: 刀型陶瓷熔断器 | D39: 电气配件 | E39: 正泰/德力西/西门子 | F39: 500A 任意尺寸 | G39: 1 | H39: 0 | I39: 1 | J39: 2 | K39: 个 | L39: 35.81 | M39: 35.81 | N39: 0.00 | O39: 35.81 | P39: 71.62
A40: 38 | B40: ▲ | C40: 刀型陶瓷熔断器 | D40: 电气配件 | E40: 正泰/德力西/西门子 | F40: 630A 任意尺寸 | G40: 1 | H40: 0 | I40: 1 | J40: 2 | K40: 个 | L40: 35.80 | M40: 35.80 | N40: 0.00 | O40: 35.80 | P40: 71.60
A41: 39 | B41: ▲ | C41: 刀型陶瓷熔断器底座 | D41: 电气配件 | E41: 正泰/德力西/西门子 | F41: 任意尺寸 | G41: 2 | H41: 1 | I41: 1 | J41: 4 | K41: 个 | L41: 57.28 | M41: 114.56 | N41: 57.28 | O41: 57.28 | P41: 229.12
A42: 40 | B42: ▲ | C42: 电磁阀 | D42: 电气配件 | E42: AIRTAC/SMC/ABB | F42: 2位5通换向阀 220V | G42: 2 | H42: 1 | I42: 1 | J42: 4 | K42: 个 | L42: 107.28 | M42: 214.56 | N42: 107.28 | O42: 107.28 | P42: 429.12
A43: 41 | B43: ▲ | C43: 电磁阀 | D43: 电气配件 | E43: AIRTAC/SMC/ABB | F43: 2位5通换向阀 24V | G43: 2 | H43: 1 | I43: 1 | J43: 4 | K43: 个 | L43: 107.28 | M43: 214.56 | N43: 107.28 | O43: 107.28 | P43: 429.12
A44: 42 | B44: ▲ | C44: 电磁阀 | D44: 电气配件 | E44: AIRTAC/SMC/ABB | F44: 3位5通换向阀 220V | G44: 2 | H44: 1 | I44: 1 | J44: 4 | K44: 个 | L44: 269.77 | M44: 539.54 | N44: 269.77 | O44: 269.77 | P44: 1,079.08
A45: 43 | B45: ▲ | C45: 电磁阀 | D45: 电气配件 | E45: AIRTAC/SMC/ABB | F45: 3位5通换向阀 24V | G45: 2 | H45: 1 | I45: 1 | J45: 4 | K45: 个 | L45: 288.77 | M45: 577.54 | N45: 288.77 | O45: 288.77 | P45: 1,155.08
A46: 44 | B46: ▲ | C46: 电磁制动器 | D46: 电气配件 | E46: 诺德/ABB/西门子 | F46: 19041902（180V2214/40FB15)，适配诺德电机100L/4 BRE40 | G46: 1 | H46: 0 | I46: 0 | J46: 1 | K46: 套 | L46: 4000.00 | M46: 4,000.00 | N46: 0.00 | O46: 0.00 | P46: 4,000.00
A47: 45 | B47: ▲ | C47: 电动工具锂电池 | D47: 电气配件 | E47: 博世/德力西/正泰 | F47: 18V,4Ah | G47: 2 | H47: 0 | I47: 1 | J47: 3 | K47: 个 | L47: 530.97 | M47: 1,061.94 | N47: 0.00 | O47: 530.97 | P47: 1,592.91
A48: 46 | B48: ▲ | C48: 电动工具锂电池 | D48: 电气配件 | E48: 史丹利/德力西/博世 | F48: 18V，23.4Wh，1.3Ah SCB20C A901 | G48: 2 | H48: 0 | I48: 1 | J48: 3 | K48: 个 | L48: 575.22 | M48: 1,150.44 | N48: 0.00 | O48: 575.22 | P48: 1,725.66
A49: 47 | B49: ▲ | C49: 电感式接近开关 | D49: 电气配件 | E49: 正泰/施耐德/德力西 | F49: 直流三线，常开 200mA 6-36V DC | G49: 4 | H49: 1 | I49: 1 | J49: 6 | K49: 个 | L49: 56.64 | M49: 226.56 | N49: 56.64 | O49: 56.64 | P49: 339.84
A50: 48 | B50: ▲ | C50: 电感式接近开关 | D50: 电气配件 | E50: 正泰/施耐德/德力西 | F50: 交流二线常开 200mA 220V AC | G50: 4 | H50: 1 | I50: 1 | J50: 6 | K50: 个 | L50: 50.00 | M50: 200.00 | N50: 50.00 | O50: 50.00 | P50: 300.00
A51: 49 | B51: ▲ | C51: 电接触式压力开关 | D51: 电气配件 | E51: 正泰/施耐德/德力西 | F51: 220V 10A，1级，压力0-1.6MPA | G51: 1 | H51: 0 | I51: 1 | J51: 2 | K51: 个 | L51: 76.99 | M51: 76.99 | N51: 0.00 | O51: 76.99 | P51: 153.98
A52: 50 | B52: ▲ | C52: 电接触式压力开关 | D52: 电气配件 | E52: 正泰/施耐德/德力西 | F52: 220V 10A，1级，压力0-5MPA | G52: 1 | H52: 0 | I52: 1 | J52: 2 | K52: 个 | L52: 76.11 | M52: 76.11 | N52: 0.00 | O52: 76.11 | P52: 152.22
A53: 51 | B53: ▲ | C53: 电接触式压力开关 | D53: 电气配件 | E53: 正泰/施耐德/德力西 | F53: 220V 10A，1级，压力0-10MPA | G53: 1 | H53: 0 | I53: 1 | J53: 2 | K53: 个 | L53: 79.65 | M53: 79.65 | N53: 0.00 | O53: 79.65 | P53: 159.30
A54: 52 | B54: ▲ | C54: 电接触式压力开关 | D54: 电气配件 | E54: 正泰/施耐德/德力西 | F54: 220V 10A，1级，压力0-20MPA | G54: 1 | H54: 0 | I54: 1 | J54: 2 | K54: 个 | L54: 110.62 | M54: 110.62 | N54: 0.00 | O54: 110.62 | P54: 221.24
A55: 53 | B55: ▲ | C55: 电接触式压力开关 | D55: 电气配件 | E55: 正泰/施耐德/德力西 | F55: 220V 10A，1级，压力0-30MPA | G55: 1 | H55: 0 | I55: 1 | J55: 2 | K55: 个 | L55: 115.04 | M55: 115.04 | N55: 0.00 | O55: 115.04 | P55: 230.08
A56: 54 | B56: ▲ | C56: 电接触式压力开关 | D56: 电气配件 | E56: 正泰/施耐德/德力西 | F56: 220V 10A，1级，压力0-40MPA | G56: 1 | H56: 0 | I56: 1 | J56: 2 | K56: 个 | L56: 128.32 | M56: 128.32 | N56: 0.00 | O56: 128.32 | P56: 256.64
A57: 55 | B57: ▲ | C57: 电接触式压力开关 | D57: 电气配件 | E57: 正泰/施耐德/德力西 | F57: 220V 10A，1级，压力0-50MPA | G57: 1 | H57: 0 | I57: 1 | J57: 2 | K57: 个 | L57: 228.32 | M57: 228.32 | N57: 0.00 | O57: 228.32 | P57: 456.64
A58: 56 | B58: ▲ | C58: 电接触式压力开关 | D58: 电气配件 | E58: 正泰/施耐德/德力西 | F58: 220V 10A，1级，压力0-50MPA | G58: 1 | H58: 0 | I58: 1 | J58: 2 | K58: 个 | L58: 228.32 | M58: 228.32 | N58: 0.00 | O58: 228.32 | P58: 456.64
A59: 57 | B59: ▲ | C59: 电接触式压力开关 | D59: 电气配件 | E59: 正泰/施耐德/德力西 | F59: 220V 10A，1级，压力0-60MPA | G59: 1 | H59: 0 | I59: 1 | J59: 2 | K59: 个 | L59: 229.20 | M59: 229.20 | N59: 0.00 | O59: 229.20 | P59: 458.40
A60: 58 | B60: ▲ | C60: 电接触式压力开关 | D60: 电气配件 | E60: 正泰/施耐德/德力西 | F60: 220V 10A，1级，压力0-70MPA | G60: 1 | H60: 0 | I60: 1 | J60: 2 | K60: 个 | L60: 230.09 | M60: 230.09 | N60: 0.00 | O60: 230.09 | P60: 460.18
A61: 59 | B61: ▲ | C61: 电接触式压力开关 | D61: 电气配件 | E61: 正泰/施耐德/德力西 | F61: 220V 10A，1级，压力0-80MPA | G61: 1 | H61: 0 | I61: 1 | J61: 2 | K61: 个 | L61: 252.21 | M61: 252.21 | N61: 0.00 | O61: 252.21 | P61: 504.42
A62: 60 | B62: ▲ | C62: 电接触式压力开关 | D62: 电气配件 | E62: 正泰/施耐德/德力西 | F62: 220V 10A，1级，压力0-90MPA | G62: 1 | H62: 0 | I62: 1 | J62: 2 | K62: 个 | L62: 265.49 | M62: 265.49 | N62: 0.00 | O62: 265.49 | P62: 530.98
A63: 61 | B63: ▲ | C63: 电接触式压力开关 | D63: 电气配件 | E63: 正泰/施耐德/德力西 | F63: 220V 10A，1级，压力0-100MPA | G63: 1 | H63: 0 | I63: 1 | J63: 2 | K63: 个 | L63: 405.31 | M63: 405.31 | N63: 0.00 | O63: 405.31 | P63: 810.62
A64: 62 | B64: ▲ | C64: 电容 | D64: 电气配件 | E64: 威乐/正泰/云野 | F64: CBB61（方形 5uf 450VAC ) | G64: 1 | H64: 0 | I64: 1 | J64: 2 | K64: 个 | L64: 13.20 | M64: 13.20 | N64: 0.00 | O64: 13.20 | P64: 26.40
A65: 63 | B65: ▲ | C65: 电容 | D65: 电气配件 | E65: 威乐/正泰/云野 | F65: CBB61（方形 10uf 450VAC ) | G65: 1 | H65: 0 | I65: 1 | J65: 2 | K65: 个 | L65: 19.81 | M65: 19.81 | N65: 0.00 | O65: 19.81 | P65: 39.62
A66: 64 | B66: ▲ | C66: 电容 | D66: 电气配件 | E66: 威乐/正泰/云野 | F66: CBB61（方形 20uf 450VAC ) | G66: 1 | H66: 0 | I66: 1 | J66: 2 | K66: 个 | L66: 30.59 | M66: 30.59 | N66: 0.00 | O66: 30.59 | P66: 61.18
A67: 65 | B67: ▲ | C67: 断路器 | D67: 电气配件 | E67: 施耐德/西门子/ABB | F67: 1P 6A C型 | G67: 4 | H67: 1 | I67: 1 | J67: 6 | K67: 个 | L67: 44.73 | M67: =L67*G67 -> 178.92 | N67: =L67*H67 -> 44.73 | O67: 44.73 | P67: 268.38
A68: 66 | B68: ▲ | C68: 断路器 | D68: 电气配件 | E68: 施耐德/西门子/ABB | F68: 1P 10A C型 | G68: 4 | H68: 1 | I68: 1 | J68: =G68+H68+I68 -> 6 | K68: 个 | L68: 43.53 | M68: 174.12 | N68: 43.53 | O68: =I68*L68 -> 43.53 | P68: =M68+N68+O68 -> 261.18
A69: 67 | B69: ▲ | C69: 断路器 | D69: 电气配件 | E69: 施耐德/西门子/ABB | F69: 1P 16A C型 | G69: 4 | H69: 1 | I69: 1 | J69: 6 | K69: 个 | L69: 49.24 | M69: 196.96 | N69: 49.24 | O69: 49.24 | P69: 295.44
A70: 68 | B70: ▲ | C70: 断路器 | D70: 电气配件 | E70: 施耐德/西门子/ABB | F70: 1P 20A C型 | G70: 4 | H70: 1 | I70: 1 | J70: 6 | K70: 个 | L70: 54.96 | M70: 219.84 | N70: 54.96 | O70: 54.96 | P70: 329.76
A71: 69 | B71: ▲ | C71: 断路器 | D71: 电气配件 | E71: 施耐德/西门子/ABB | F71: 1P 25A C型 | G71: 4 | H71: 1 | I71: 1 | J71: 6 | K71: 个 | L71: 59.09 | M71: 236.36 | N71: 59.09 | O71: 59.09 | P71: 354.54
A72: 70 | B72: ▲ | C72: 断路器 | D72: 电气配件 | E72: 施耐德/西门子/ABB | F72: 1P 32A C型 | G72: 4 | H72: 1 | I72: 1 | J72: 6 | K72: 个 | L72: 64.81 | M72: 259.24 | N72: 64.81 | O72: 64.81 | P72: 388.86
A73: 71 | B73: ▲ | C73: 断路器 | D73: 电气配件 | E73: 施耐德/西门子/ABB | F73: 1P 40A C型 | G73: 4 | H73: 1 | I73: 1 | J73: 6 | K73: 个 | L73: 72.00 | M73: 288.00 | N73: 72.00 | O73: 72.00 | P73: 432.00
A74: 72 | B74: ▲ | C74: 断路器 | D74: 电气配件 | E74: 施耐德/西门子/ABB | F74: 1P 50A C型 | G74: 4 | H74: 1 | I74: 1 | J74: 6 | K74: 个 | L74: 83.12 | M74: 332.48 | N74: 83.12 | O74: 83.12 | P74: 498.72
A75: 73 | B75: ▲ | C75: 断路器 | D75: 电气配件 | E75: 施耐德/西门子/ABB | F75: 1P 63A C型 | G75: 4 | H75: 1 | I75: 1 | J75: 6 | K75: 个 | L75: 88.54 | M75: 354.16 | N75: 88.54 | O75: 88.54 | P75: 531.24
A76: 74 | B76: ▲ | C76: 断路器 | D76: 电气配件 | E76: 施耐德/西门子/ABB | F76: 1P 80A C型 | G76: 4 | H76: 1 | I76: 1 | J76: 6 | K76: 个 | L76: 132.74 | M76: 530.96 | N76: 132.74 | O76: 132.74 | P76: 796.44
A77: 75 | B77: ▲ | C77: 断路器 | D77: 电气配件 | E77: 施耐德/西门子/ABB | F77: 1P 100A C型 | G77: 1 | H77: 1 | I77: 1 | J77: 3 | K77: 个 | L77: 159.29 | M77: 159.29 | N77: 159.29 | O77: 159.29 | P77: 477.87
A78: 76 | B78: ▲ | C78: 断路器 | D78: 电气配件 | E78: 施耐德/西门子/ABB | F78: 1P 125A C型 | G78: 2 | H78: 0 | I78: 1 | J78: 3 | K78: 个 | L78: 163.72 | M78: 327.44 | N78: 0.00 | O78: 163.72 | P78: 491.16
A79: 77 | B79: ▲ | C79: 断路器 | D79: 电气配件 | E79: 施耐德/西门子/ABB | F79: 1P+N 6A C型 | G79: 4 | H79: 1 | I79: 1 | J79: 6 | K79: 个 | L79: 82.16 | M79: 328.64 | N79: 82.16 | O79: 82.16 | P79: 492.96
A80: 78 | B80: ▲ | C80: 断路器 | D80: 电气配件 | E80: 施耐德/西门子/ABB | F80: 1P+N 10A C型 | G80: 4 | H80: 1 | I80: 1 | J80: 6 | K80: 个 | L80: 84.07 | M80: 336.28 | N80: 84.07 | O80: 84.07 | P80: 504.42
A81: 79 | B81: ▲ | C81: 断路器 | D81: 电气配件 | E81: 施耐德/西门子/ABB | F81: 1P+N 16A C型 | G81: 4 | H81: 1 | I81: 1 | J81: 6 | K81: 个 | L81: 87.61 | M81: 350.44 | N81: 87.61 | O81: 87.61 | P81: 525.66
A82: 80 | B82: ▲ | C82: 断路器 | D82: 电气配件 | E82: 施耐德/西门子/ABB | F82: 1P+N 20A C型 | G82: 4 | H82: 1 | I82: 1 | J82: 6 | K82: 个 | L82: 92.92 | M82: 371.68 | N82: 92.92 | O82: 92.92 | P82: 557.52
A83: 81 | B83: ▲ | C83: 断路器 | D83: 电气配件 | E83: 施耐德/西门子/ABB | F83: 1P+N 25A C型 | G83: 4 | H83: 1 | I83: 1 | J83: 6 | K83: 个 | L83: 97.35 | M83: 389.40 | N83: 97.35 | O83: 97.35 | P83: 584.10
A84: 82 | B84: ▲ | C84: 断路器 | D84: 电气配件 | E84: 施耐德/西门子/ABB | F84: 1P+N 32A C型 | G84: 4 | H84: 1 | I84: 1 | J84: 6 | K84: 个 | L84: 104.42 | M84: 417.68 | N84: 104.42 | O84: 104.42 | P84: 626.52
A85: 83 | B85: ▲ | C85: 断路器 | D85: 电气配件 | E85: 施耐德/西门子/ABB | F85: 1P+N 40A C型 | G85: 4 | H85: 1 | I85: 1 | J85: 6 | K85: 个 | L85: 119.47 | M85: 477.88 | N85: 119.47 | O85: 119.47 | P85: 716.82
A86: 84 | B86: ▲ | C86: 断路器 | D86: 电气配件 | E86: 施耐德/西门子/ABB | F86: 1P+N 50A D型 | G86: 4 | H86: 1 | I86: 1 | J86: 6 | K86: 个 | L86: 123.89 | M86: 495.56 | N86: 123.89 | O86: 123.89 | P86: 743.34
A87: 85 | B87: ▲ | C87: 断路器 | D87: 电气配件 | E87: 施耐德/西门子/ABB | F87: 1P+N 63A D型 | G87: 4 | H87: 1 | I87: 1 | J87: 6 | K87: 个 | L87: 132.74 | M87: 530.96 | N87: 132.74 | O87: 132.74 | P87: 796.44
A88: 86 | B88: ▲ | C88: 断路器 | D88: 电气配件 | E88: 施耐德/西门子/ABB | F88: 1P+N 80A D型 | G88: 1 | H88: 1 | I88: 1 | J88: 3 | K88: 个 | L88: 221.24 | M88: 221.24 | N88: 221.24 | O88: 221.24 | P88: 663.72
A89: 87 | B89: ▲ | C89: 断路器 | D89: 电气配件 | E89: 施耐德/西门子/ABB | F89: 1P+N 100A D型 | G89: 1 | H89: 1 | I89: 1 | J89: 3 | K89: 个 | L89: 240.71 | M89: 240.71 | N89: 240.71 | O89: 240.71 | P89: 722.13
A90: 88 | B90: ▲ | C90: 断路器 | D90: 电气配件 | E90: 施耐德/西门子/ABB | F90: 1P+N 125A D型 | G90: 1 | H90: 1 | I90: 1 | J90: 3 | K90: 个 | L90: 247.79 | M90: 247.79 | N90: 247.79 | O90: 247.79 | P90: 743.37
A91: 89 | B91: ▲ | C91: 断路器 | D91: 电气配件 | E91: 施耐德/西门子/ABB | F91: 2P 6A C型 | G91: 4 | H91: 1 | I91: 1 | J91: 6 | K91: 个 | L91: 75.22 | M91: 300.88 | N91: 75.22 | O91: 75.22 | P91: 451.32
A92: 90 | B92: ▲ | C92: 断路器 | D92: 电气配件 | E92: 施耐德/西门子/ABB | F92: 2P 10A C型 | G92: 4 | H92: 1 | I92: 1 | J92: 6 | K92: 个 | L92: 78.76 | M92: 315.04 | N92: 78.76 | O92: 78.76 | P92: 472.56
A93: 91 | B93: ▲ | C93: 断路器 | D93: 电气配件 | E93: 施耐德/西门子/ABB | F93: 2P 16A D型 | G93: 4 | H93: 1 | I93: 1 | J93: 6 | K93: 个 | L93: 86.73 | M93: 346.92 | N93: 86.73 | O93: 86.73 | P93: 520.38
A94: 92 | B94: ▲ | C94: 断路器 | D94: 电气配件 | E94: 施耐德/西门子/ABB | F94: 2P 20A D型 | G94: 4 | H94: 1 | I94: 1 | J94: 6 | K94: 个 | L94: 88.50 | M94: 354.00 | N94: 88.50 | O94: 88.50 | P94: 531.00
A95: 93 | B95: ▲ | C95: 断路器 | D95: 电气配件 | E95: 施耐德/西门子/ABB | F95: 2P 25A D型 | G95: 4 | H95: 1 | I95: 1 | J95: 6 | K95: 个 | L95: 101.77 | M95: 407.08 | N95: 101.77 | O95: 101.77 | P95: 610.62
A96: 94 | B96: ▲ | C96: 断路器 | D96: 电气配件 | E96: 施耐德/西门子/ABB | F96: 2P 32A D型 | G96: 4 | H96: 1 | I96: 1 | J96: 6 | K96: 个 | L96: 104.42 | M96: 417.68 | N96: 104.42 | O96: 104.42 | P96: 626.52
A97: 95 | B97: ▲ | C97: 断路器 | D97: 电气配件 | E97: 施耐德/西门子/ABB | F97: 2P 40A C型 | G97: 4 | H97: 1 | I97: 1 | J97: 6 | K97: 个 | L97: 108.85 | M97: 435.40 | N97: 108.85 | O97: 108.85 | P97: 653.10
A98: 96 | B98: ▲ | C98: 断路器 | D98: 电气配件 | E98: 施耐德/西门子/ABB | F98: 2P 50A C型 | G98: 4 | H98: 1 | I98: 1 | J98: 6 | K98: 个 | L98: 113.27 | M98: 453.08 | N98: 113.27 | O98: 113.27 | P98: 679.62
A99: 97 | B99: ▲ | C99: 断路器 | D99: 电气配件 | E99: 施耐德/西门子/ABB | F99: 2P 63A C型 | G99: 1 | H99: 1 | I99: 1 | J99: 3 | K99: 个 | L99: 115.04 | M99: 115.04 | N99: 115.04 | O99: 115.04 | P99: 345.12
A100: 98 | B100: ▲ | C100: 断路器 | D100: 电气配件 | E100: 施耐德/西门子/ABB | F100: 2P 80A C型 | G100: 1 | H100: 1 | I100: 1 | J100: 3 | K100: 个 | L100: 119.47 | M100: 119.47 | N100: 119.47 | O100: 119.47 | P100: 358.41
A101: 99 | B101: ▲ | C101: 断路器 | D101: 电气配件 | E101: 施耐德/西门子/ABB | F101: 2P 100A C型 | G101: 1 | H101: 0 | I101: 1 | J101: 2 | K101: 个 | L101: 159.29 | M101: 159.29 | N101: 0.00 | O101: 159.29 | P101: 318.58
A102: 100 | B102: ▲ | C102: 断路器 | D102: 电气配件 | E102: 施耐德/西门子/ABB | F102: 2P 125A C型 | G102: 1 | H102: 0 | I102: 1 | J102: 2 | K102: 个 | L102: 216.81 | M102: 216.81 | N102: 0.00 | O102: 216.81 | P102: 433.62
A103: 101 | B103: ▲ | C103: 断路器 | D103: 电气配件 | E103: 施耐德/西门子/ABB | F103: 3P 10A C型 | G103: 4 | H103: 1 | I103: 1 | J103: 6 | K103: 个 | L103: 76.99 | M103: 307.96 | N103: 76.99 | O103: 76.99 | P103: 461.94
A104: 102 | B104: ▲ | C104: 断路器 | D104: 电气配件 | E104: 施耐德/西门子/ABB | F104: 3P 16A C型 | G104: 4 | H104: 1 | I104: 1 | J104: 6 | K104: 个 | L104: 78.76 | M104: 315.04 | N104: 78.76 | O104: 78.76 | P104: 472.56
A105: 103 | B105: ▲ | C105: 断路器 | D105: 电气配件 | E105: 施耐德/西门子/ABB | F105: 3P 20A C型 | G105: 4 | H105: 1 | I105: 1 | J105: 6 | K105: 个 | L105: 81.42 | M105: 325.68 | N105: 81.42 | O105: 81.42 | P105: 488.52
A106: 104 | B106: ▲ | C106: 断路器 | D106: 电气配件 | E106: 施耐德/西门子/ABB | F106: 3P 25A C型 | G106: 4 | H106: 1 | I106: 1 | J106: 6 | K106: 个 | L106: 82.30 | M106: 329.20 | N106: 82.30 | O106: 82.30 | P106: 493.80
A107: 105 | B107: ▲ | C107: 断路器 | D107: 电气配件 | E107: 施耐德/西门子/ABB | F107: 3P 32A C型 | G107: 4 | H107: 1 | I107: 1 | J107: 6 | K107: 个 | L107: 86.73 | M107: 346.92 | N107: 86.73 | O107: 86.73 | P107: 520.38
A108: 106 | B108: ▲ | C108: 断路器 | D108: 电气配件 | E108: 施耐德/西门子/ABB | F108: 3P 40A C型 | G108: 4 | H108: 1 | I108: 1 | J108: 6 | K108: 个 | L108: 94.69 | M108: 378.76 | N108: 94.69 | O108: 94.69 | P108: 568.14
A109: 107 | B109: ▲ | C109: 断路器 | D109: 电气配件 | E109: 施耐德/西门子/ABB | F109: 3P 50A C型 | G109: 4 | H109: 1 | I109: 1 | J109: 6 | K109: 个 | L109: 96.46 | M109: 385.84 | N109: 96.46 | O109: 96.46 | P109: 578.76
A110: 108 | B110: ▲ | C110: 断路器 | D110: 电气配件 | E110: 施耐德/西门子/ABB | F110: 3P 63A C型 | G110: 5 | H110: 0 | I110: 1 | J110: 6 | K110: 个 | L110: 101.77 | M110: 508.85 | N110: 0.00 | O110: 101.77 | P110: 610.62
A111: 109 | B111: ▲ | C111: 断路器 | D111: 电气配件 | E111: 施耐德/西门子/ABB | F111: 3P 80A C型 | G111: 3 | H111: 0 | I111: 1 | J111: 4 | K111: 个 | L111: 146.02 | M111: 438.06 | N111: 0.00 | O111: 146.02 | P111: 584.08
A112: 110 | B112: ▲ | C112: 断路器 | D112: 电气配件 | E112: 施耐德/西门子/ABB | F112: 3P 100A C型 | G112: 1 | H112: 0 | I112: 1 | J112: 2 | K112: 个 | L112: 168.14 | M112: 168.14 | N112: 0.00 | O112: 168.14 | P112: 336.28
A113: 111 | B113: ▲ | C113: 断路器 | D113: 电气配件 | E113: 施耐德/西门子/ABB | F113: 3P 125A C型 | G113: 1 | H113: 0 | I113: 1 | J113: 2 | K113: 个 | L113: 216.81 | M113: 216.81 | N113: 0.00 | O113: 216.81 | P113: 433.62
A114: 112 | B114: ▲ | C114: 断路器 | D114: 电气配件 | E114: 施耐德/西门子/ABB | F114: 3P 150A C型 | G114: 1 | H114: 0 | I114: 0 | J114: 1 | K114: 个 | L114: 252.21 | M114: 252.21 | N114: 0.00 | O114: 0.00 | P114: 252.21
A115: 113 | B115: ▲ | C115: 断路器 | D115: 电气配件 | E115: 施耐德/西门子/ABB | F115: 3P 200A C型 | G115: 1 | H115: 0 | I115: 0 | J115: 1 | K115: 个 | L115: 287.61 | M115: 287.61 | N115: 0.00 | O115: 0.00 | P115: 287.61
A116: 114 | B116: ▲ | C116: 断路器 | D116: 电气配件 | E116: 施耐德/西门子/ABB | F116: 3P 250A C型 | G116: 1 | H116: 0 | I116: 0 | J116: 1 | K116: 个 | L116: 323.01 | M116: 323.01 | N116: 0.00 | O116: 0.00 | P116: 323.01
A117: 115 | B117: ▲ | C117: 断路器 | D117: 电气配件 | E117: 施耐德/西门子/ABB | F117: 3P 300A D型 | G117: 1 | H117: 0 | I117: 0 | J117: 1 | K117: 个 | L117: 349.56 | M117: 349.56 | N117: 0.00 | O117: 0.00 | P117: 349.56
A118: 116 | B118: ▲ | C118: 断路器 | D118: 电气配件 | E118: 施耐德/西门子/ABB | F118: 3P 320A D型 | G118: 1 | H118: 0 | I118: 0 | J118: 1 | K118: 个 | L118: 1600.00 | M118: 1,600.00 | N118: 0.00 | O118: 0.00 | P118: 1,600.00
A119: 117 | B119: ▲ | C119: 断路器 | D119: 电气配件 | E119: 施耐德/西门子/ABB | F119: 3P 350A D型 | G119: 1 | H119: 0 | I119: 0 | J119: 1 | K119: 个 | L119: 1750.00 | M119: 1,750.00 | N119: 0.00 | O119: 0.00 | P119: 1,750.00
A120: 118 | B120: ▲ | C120: 断路器 | D120: 电气配件 | E120: 施耐德/西门子/ABB | F120: 3P 400A D型 | G120: 1 | H120: 0 | I120: 0 | J120: 1 | K120: 个 | L120: 2870.94 | M120: 2,870.94 | N120: 0.00 | O120: 0.00 | P120: 2,870.94
A121: 119 | B121: ▲ | C121: 断路器 | D121: 电气配件 | E121: 施耐德/西门子/ABB | F121: 3P 450A D型 | G121: 1 | H121: 0 | I121: 0 | J121: 1 | K121: 个 | L121: 4168.51 | M121: 4,168.51 | N121: 0.00 | O121: 0.00 | P121: 4,168.51
A122: 120 | B122: ▲ | C122: 断路器 | D122: 电气配件 | E122: 施耐德/西门子/ABB | F122: 3P 500A D型 | G122: 1 | H122: 0 | I122: 0 | J122: 1 | K122: 个 | L122: 4821.47 | M122: 4,821.47 | N122: 0.00 | O122: 0.00 | P122: 4,821.47
A123: 121 | B123: ▲ | C123: 断路器 | D123: 电气配件 | E123: 施耐德/西门子/ABB | F123: 3P 630A D型 | G123: 1 | H123: 0 | I123: 0 | J123: 1 | K123: 个 | L123: 5812.74 | M123: 5,812.74 | N123: 0.00 | O123: 0.00 | P123: 5,812.74
A124: 122 | B124: ▲ | C124: 断路器 | D124: 电气配件 | E124: 施耐德/西门子/ABB | F124: 3P 800A D型 | G124: 1 | H124: 0 | I124: 0 | J124: 1 | K124: 个 | L124: 9125.00 | M124: 9,125.00 | N124: 0.00 | O124: 0.00 | P124: 9,125.00
A125: 123 | B125: ▲ | C125: 断路器 | D125: 电气配件 | E125: 施耐德/西门子/ABB | F125: 3P 1000A C型 | G125: 1 | H125: 0 | I125: 0 | J125: 1 | K125: 个 | L125: 12750.00 | M125: 12,750.00 | N125: 0.00 | O125: 0.00 | P125: 12,750.00
A126: 124 | B126: ▲ | C126: 断路器 | D126: 电气配件 | E126: 施耐德/西门子/ABB | F126: 3P 1250A C型 | G126: 1 | H126: 0 | I126: 0 | J126: 1 | K126: 个 | L126: 15125.00 | M126: 15,125.00 | N126: 0.00 | O126: 0.00 | P126: 15,125.00
A127: 125 | B127: ▲ | C127: 断路器 | D127: 电气配件 | E127: 施耐德/西门子/ABB | F127: 3P+N 10A D型 | G127: 4 | H127: 1 | I127: 1 | J127: 6 | K127: 个 | L127: 110.62 | M127: 442.48 | N127: 110.62 | O127: 110.62 | P127: 663.72
A128: 126 | B128: ▲ | C128: 断路器 | D128: 电气配件 | E128: 施耐德/西门子/ABB | F128: 3P+N 16A D型 | G128: 4 | H128: 1 | I128: 1 | J128: 6 | K128: 个 | L128: 114.16 | M128: 456.64 | N128: 114.16 | O128: 114.16 | P128: 684.96
A129: 127 | B129: ▲ | C129: 断路器 | D129: 电气配件 | E129: 施耐德/西门子/ABB | F129: 3P+N 20A D型 | G129: 4 | H129: 1 | I129: 1 | J129: 6 | K129: 个 | L129: 154.87 | M129: 619.48 | N129: 154.87 | O129: 154.87 | P129: 929.22
A130: 128 | B130: ▲ | C130: 断路器 | D130: 电气配件 | E130: 施耐德/西门子/ABB | F130: 3P+N 25A D型 | G130: 4 | H130: 1 | I130: 1 | J130: 6 | K130: 个 | L130: 163.72 | M130: 654.88 | N130: 163.72 | O130: 163.72 | P130: 982.32
A131: 129 | B131: ▲ | C131: 断路器 | D131: 电气配件 | E131: 施耐德/西门子/ABB | F131: 3P+N 32A D型 | G131: 5 | H131: 0 | I131: 1 | J131: 6 | K131: 个 | L131: 199.12 | M131: =L131*G131 -> 995.60 | N131: =L131*H131 -> 0.00 | O131: 199.12 | P131: 1,194.72
A132: 130 | B132: ▲ | C132: 断路器 | D132: 电气配件 | E132: 施耐德/西门子/ABB | F132: 3P+N 40A D型 | G132: 5 | H132: 0 | I132: 1 | J132: =G132+H132+I132 -> 6 | K132: 个 | L132: 200.88 | M132: 1,004.40 | N132: 0.00 | O132: =I132*L132 -> 200.88 | P132: =M132+N132+O132 -> 1,205.28
A133: 131 | B133: ▲ | C133: 断路器 | D133: 电气配件 | E133: 施耐德/西门子/ABB | F133: 3P+N 50A D型 | G133: 1 | H133: 0 | I133: 0 | J133: 1 | K133: 个 | L133: 203.54 | M133: 203.54 | N133: 0.00 | O133: 0.00 | P133: 203.54
A134: 132 | B134: ▲ | C134: 断路器 | D134: 电气配件 | E134: 施耐德/西门子/ABB | F134: 3P+N 63A D型 | G134: 1 | H134: 0 | I134: 0 | J134: 1 | K134: 个 | L134: 216.81 | M134: 216.81 | N134: 0.00 | O134: 0.00 | P134: 216.81
A135: 133 | B135: ▲ | C135: 断路器 | D135: 电气配件 | E135: 施耐德/西门子/ABB | F135: 3P+N 80A D型 | G135: 1 | H135: 0 | I135: 0 | J135: 1 | K135: 个 | L135: 252.21 | M135: 252.21 | N135: 0.00 | O135: 0.00 | P135: 252.21
A136: 134 | B136: ▲ | C136: 断路器 | D136: 电气配件 | E136: 施耐德/西门子/ABB | F136: 3P+N 100A D型 | G136: 1 | H136: 0 | I136: 0 | J136: 1 | K136: 个 | L136: 263.72 | M136: 263.72 | N136: 0.00 | O136: 0.00 | P136: 263.72
A137: 135 | B137: ▲ | C137: 断路器 | D137: 电气配件 | E137: 施耐德/西门子/ABB | F137: 3P+N 125A D型 | G137: 1 | H137: 0 | I137: 0 | J137: 1 | K137: 个 | L137: 305.31 | M137: 305.31 | N137: 0.00 | O137: 0.00 | P137: 305.31
A138: 136 | B138: ▲ | C138: 断路器 | D138: 电气配件 | E138: 施耐德/西门子/ABB | F138: 4P 10A C型 | G138: 4 | H138: 1 | I138: 1 | J138: 6 | K138: 个 | L138: 110.62 | M138: 442.48 | N138: 110.62 | O138: 110.62 | P138: 663.72
A139: 137 | B139: ▲ | C139: 断路器 | D139: 电气配件 | E139: 施耐德/西门子/ABB | F139: 4P 16A C型 | G139: 4 | H139: 1 | I139: 1 | J139: 6 | K139: 个 | L139: 110.62 | M139: 442.48 | N139: 110.62 | O139: 110.62 | P139: 663.72
A140: 138 | B140: ▲ | C140: 断路器 | D140: 电气配件 | E140: 施耐德/西门子/ABB | F140: 4P 20A C型 | G140: 4 | H140: 1 | I140: 1 | J140: 6 | K140: 个 | L140: 113.27 | M140: 453.08 | N140: 113.27 | O140: 113.27 | P140: 679.62
A141: 139 | B141: ▲ | C141: 断路器 | D141: 电气配件 | E141: 施耐德/西门子/ABB | F141: 4P 25A C型 | G141: 4 | H141: 1 | I141: 1 | J141: 6 | K141: 个 | L141: 114.16 | M141: 456.64 | N141: 114.16 | O141: 114.16 | P141: 684.96
A142: 140 | B142: ▲ | C142: 断路器 | D142: 电气配件 | E142: 施耐德/西门子/ABB | F142: 4P 32A C型 | G142: 4 | H142: 1 | I142: 1 | J142: 6 | K142: 个 | L142: 116.81 | M142: 467.24 | N142: 116.81 | O142: 116.81 | P142: 700.86
A143: 141 | B143: ▲ | C143: 断路器 | D143: 电气配件 | E143: 施耐德/西门子/ABB | F143: 4P 40A C型 | G143: 4 | H143: 1 | I143: 1 | J143: 6 | K143: 个 | L143: 119.47 | M143: 477.88 | N143: 119.47 | O143: 119.47 | P143: 716.82
A144: 142 | B144: ▲ | C144: 断路器 | D144: 电气配件 | E144: 施耐德/西门子/ABB | F144: 4P 50A C型 | G144: 2 | H144: 0 | I144: 1 | J144: 3 | K144: 个 | L144: 122.12 | M144: 244.24 | N144: 0.00 | O144: 122.12 | P144: 366.36
A145: 143 | B145: ▲ | C145: 断路器 | D145: 电气配件 | E145: 施耐德/西门子/ABB | F145: 4P 63A C型 | G145: 1 | H145: 0 | I145: 1 | J145: 2 | K145: 个 | L145: 163.72 | M145: 163.72 | N145: 0.00 | O145: 163.72 | P145: 327.44
A146: 144 | B146: ▲ | C146: 断路器 | D146: 电气配件 | E146: 施耐德/西门子/ABB | F146: 4P 80A C型 | G146: 1 | H146: 0 | I146: 0 | J146: 1 | K146: 个 | L146: 176.99 | M146: 176.99 | N146: 0.00 | O146: 0.00 | P146: 176.99
A147: 145 | B147: ▲ | C147: 断路器 | D147: 电气配件 | E147: 施耐德/西门子/ABB | F147: 4P 100A C型 | G147: 1 | H147: 0 | I147: 0 | J147: 1 | K147: 个 | L147: 216.81 | M147: 216.81 | N147: 0.00 | O147: 0.00 | P147: 216.81
A148: 146 | B148: ▲ | C148: 断路器 | D148: 电气配件 | E148: 施耐德/西门子/ABB | F148: 4P 125A C型 | G148: 1 | H148: 0 | I148: 0 | J148: 1 | K148: 个 | L148: 234.51 | M148: 234.51 | N148: 0.00 | O148: 0.00 | P148: 234.51
A149: 147 | B149: ▲ | C149: 断路器 | D149: 电气配件 | E149: 施耐德/德力西/正泰 | F149: 1P 10A 12-500V DC | G149: 4 | H149: 1 | I149: 1 | J149: 6 | K149: 个 | L149: 41.26 | M149: 165.04 | N149: 41.26 | O149: 41.26 | P149: 247.56
A150: 148 | B150: ▲ | C150: 断路器 | D150: 电气配件 | E150: 施耐德/德力西/正泰 | F150: 1P 16A 12-500V DC | G150: 4 | H150: 1 | I150: 1 | J150: 6 | K150: 个 | L150: 36.31 | M150: 145.24 | N150: 36.31 | O150: 36.31 | P150: 217.86
A151: 149 | B151: ▲ | C151: 断路器 | D151: 电气配件 | E151: 施耐德/德力西/正泰 | F151: 1P 20A 12-500V DC | G151: 4 | H151: 1 | I151: 1 | J151: 6 | K151: 个 | L151: 36.31 | M151: 145.24 | N151: 36.31 | O151: 36.31 | P151: 217.86
A152: 150 | B152: ▲ | C152: 断路器 | D152: 电气配件 | E152: 施耐德/德力西/正泰 | F152: 1P 25A 12-500V DC | G152: 4 | H152: 1 | I152: 1 | J152: 6 | K152: 个 | L152: 37.96 | M152: 151.84 | N152: 37.96 | O152: 37.96 | P152: 227.76
A153: 151 | B153: ▲ | C153: 断路器 | D153: 电气配件 | E153: 施耐德/德力西/正泰 | F153: 1P 32A 12-500V DC | G153: 4 | H153: 1 | I153: 1 | J153: 6 | K153: 个 | L153: 37.96 | M153: 151.84 | N153: 37.96 | O153: 37.96 | P153: 227.76
A154: 152 | B154: ▲ | C154: 断路器 | D154: 电气配件 | E154: 施耐德/德力西/正泰 | F154: 1P 40A 12-500V DC | G154: 2 | H154: 1 | I154: 1 | J154: 4 | K154: 个 | L154: 47.86 | M154: 95.72 | N154: 47.86 | O154: 47.86 | P154: 191.44
A155: 153 | B155: ▲ | C155: 断路器 | D155: 电气配件 | E155: 施耐德/德力西/正泰 | F155: 1P 50A 12-500V DC | G155: 2 | H155: 1 | I155: 1 | J155: 4 | K155: 个 | L155: 57.28 | M155: 114.56 | N155: 57.28 | O155: 57.28 | P155: 229.12
A156: 154 | B156: ▲ | C156: 断路器 | D156: 电气配件 | E156: 施耐德/德力西/正泰 | F156: 1P 63A 12-500V DC | G156: 2 | H156: 1 | I156: 1 | J156: 4 | K156: 个 | L156: 123.89 | M156: 247.78 | N156: 123.89 | O156: 123.89 | P156: 495.56
A157: 155 | B157: ▲ | C157: 断路器 | D157: 电气配件 | E157: 施耐德/德力西/正泰 | F157: 1P 80A 12-500V DC | G157: 2 | H157: 1 | I157: 1 | J157: 4 | K157: 个 | L157: 139.72 | M157: 279.44 | N157: 139.72 | O157: 139.72 | P157: 558.88
A158: 156 | B158: ▲ | C158: 断路器 | D158: 电气配件 | E158: 施耐德/德力西/正泰 | F158: 1P 100A 12-500V DC | G158: 1 | H158: 0 | I158: 1 | J158: 2 | K158: 个 | L158: 172.57 | M158: 172.57 | N158: 0.00 | O158: 172.57 | P158: 345.14
A159: 157 | B159: ▲ | C159: 断路器 | D159: 电气配件 | E159: 施耐德/德力西/正泰 | F159: 1P 125A 12-500V DC | G159: 1 | H159: 0 | I159: 1 | J159: 2 | K159: 个 | L159: 190.27 | M159: 190.27 | N159: 0.00 | O159: 190.27 | P159: 380.54
A160: 158 | B160: ▲ | C160: 断路器 | D160: 电气配件 | E160: 施耐德/德力西/正泰 | F160: 1P 150A 12-500V DC | G160: 1 | H160: 0 | I160: 1 | J160: 2 | K160: 个 | L160: 207.96 | M160: 207.96 | N160: 0.00 | O160: 207.96 | P160: 415.92
A161: 159 | B161: ▲ | C161: 断路器 | D161: 电气配件 | E161: 施耐德/德力西/正泰 | F161: 1P 200A 12-500V DC | G161: 1 | H161: 0 | I161: 1 | J161: 2 | K161: 个 | L161: 523.51 | M161: 523.51 | N161: 0.00 | O161: 523.51 | P161: 1,047.02
A162: 160 | B162: ▲ | C162: 断路器 | D162: 电气配件 | E162: 施耐德/德力西/正泰 | F162: 1P 250A 12-500V DC | G162: 1 | H162: 0 | I162: 0 | J162: 1 | K162: 个 | L162: 637.77 | M162: 637.77 | N162: 0.00 | O162: 0.00 | P162: 637.77
A163: 161 | B163: ▲ | C163: 断路器 | D163: 电气配件 | E163: 施耐德/德力西/正泰 | F163: 1P 300A 12-500V DC | G163: 1 | H163: 0 | I163: 0 | J163: 1 | K163: 个 | L163: 698.54 | M163: 698.54 | N163: 0.00 | O163: 0.00 | P163: 698.54
A164: 162 | B164: ▲ | C164: 断路器 | D164: 电气配件 | E164: 施耐德/德力西/正泰 | F164: 1P 400A 12-500V DC | G164: 1 | H164: 0 | I164: 0 | J164: 1 | K164: 个 | L164: 760.20 | M164: 760.20 | N164: 0.00 | O164: 0.00 | P164: 760.20
A165: 163 | B165: ▲ | C165: 断路器 | D165: 电气配件 | E165: 施耐德/德力西/正泰 | F165: 1P 500A 12-500V DC | G165: 1 | H165: 0 | I165: 0 | J165: 1 | K165: 个 | L165: 1103.01 | M165: 1,103.01 | N165: 0.00 | O165: 0.00 | P165: 1,103.01
A166: 164 | B166: ▲ | C166: 断路器 | D166: 电气配件 | E166: 施耐德/德力西/正泰 | F166: 1P 630A 12-500V DC | G166: 1 | H166: 0 | I166: 0 | J166: 1 | K166: 个 | L166: 1543.74 | M166: 1,543.74 | N166: 0.00 | O166: 0.00 | P166: 1,543.74
A167: 165 | B167: ▲ | C167: 断路器 | D167: 电气配件 | E167: 施耐德/西门子/ABB | F167: 1P 6A D型 | G167: 4 | H167: 1 | I167: 1 | J167: 6 | K167: 个 | L167: 45.00 | M167: 180.00 | N167: 45.00 | O167: 45.00 | P167: 270.00
A168: 166 | B168: ▲ | C168: 断路器 | D168: 电气配件 | E168: 施耐德/西门子/ABB | F168: 1P 10A D型 | G168: 4 | H168: 1 | I168: 1 | J168: 6 | K168: 个 | L168: 45.34 | M168: 181.36 | N168: 45.34 | O168: 45.34 | P168: 272.04
A169: 167 | B169: ▲ | C169: 断路器 | D169: 电气配件 | E169: 施耐德/西门子/ABB | F169: 1P 16A D型 | G169: 4 | H169: 1 | I169: 1 | J169: 6 | K169: 个 | L169: 51.05 | M169: 204.20 | N169: 51.05 | O169: 51.05 | P169: 306.30
A170: 168 | B170: ▲ | C170: 断路器 | D170: 电气配件 | E170: 施耐德/西门子/ABB | F170: 1P 20A D型 | G170: 4 | H170: 1 | I170: 1 | J170: 6 | K170: 个 | L170: 56.77 | M170: 227.08 | N170: 56.77 | O170: 56.77 | P170: 340.62
A171: 169 | B171: ▲ | C171: 断路器 | D171: 电气配件 | E171: 施耐德/西门子/ABB | F171: 1P 25A D型 | G171: 4 | H171: 1 | I171: 1 | J171: 6 | K171: 个 | L171: 61.40 | M171: 245.60 | N171: 61.40 | O171: 61.40 | P171: 368.40
A172: 170 | B172: ▲ | C172: 断路器 | D172: 电气配件 | E172: 施耐德/西门子/ABB | F172: 1P 32A D型 | G172: 4 | H172: 1 | I172: 1 | J172: 6 | K172: 个 | L172: 67.11 | M172: 268.44 | N172: 67.11 | O172: 67.11 | P172: 402.66
A173: 171 | B173: ▲ | C173: 断路器 | D173: 电气配件 | E173: 施耐德/西门子/ABB | F173: 1P 40A D型 | G173: 4 | H173: 1 | I173: 1 | J173: 6 | K173: 个 | L173: 73.36 | M173: 293.44 | N173: 73.36 | O173: 73.36 | P173: 440.16
A174: 172 | B174: ▲ | C174: 断路器 | D174: 电气配件 | E174: 施耐德/西门子/ABB | F174: 1P 50A D型 | G174: 4 | H174: 1 | I174: 1 | J174: 6 | K174: 个 | L174: 84.61 | M174: 338.44 | N174: 84.61 | O174: 84.61 | P174: 507.66
A175: 173 | B175: ▲ | C175: 断路器 | D175: 电气配件 | E175: 施耐德/西门子/ABB | F175: 1P 63A D型 | G175: 4 | H175: 1 | I175: 1 | J175: 6 | K175: 个 | L175: 90.79 | M175: 363.16 | N175: 90.79 | O175: 90.79 | P175: 544.74
A176: 174 | B176: ▲ | C176: 断路器 | D176: 电气配件 | E176: 施耐德/西门子/ABB | F176: 1P 80A D型 | G176: 4 | H176: 1 | I176: 1 | J176: 6 | K176: 个 | L176: 208.20 | M176: 832.80 | N176: 208.20 | O176: 208.20 | P176: 1,249.20
A177: 175 | B177: ▲ | C177: 断路器 | D177: 电气配件 | E177: 施耐德/西门子/ABB | F177: 1P 100A D型 | G177: 1 | H177: 1 | I177: 1 | J177: 3 | K177: 个 | L177: 235.59 | M177: 235.59 | N177: 235.59 | O177: 235.59 | P177: 706.77
A178: 176 | B178: ▲ | C178: 断路器 | D178: 电气配件 | E178: 施耐德/西门子/ABB | F178: 1P 125A D型 | G178: 2 | H178: 0 | I178: 1 | J178: 3 | K178: 个 | L178: 272.22 | M178: 544.44 | N178: 0.00 | O178: 272.22 | P178: 816.66
A179: 177 | B179: ▲ | C179: 断路器 | D179: 电气配件 | E179: 施耐德/西门子/ABB | F179: 1P+N 6A D型 | G179: 4 | H179: 1 | I179: 1 | J179: 6 | K179: 个 | L179: 75.22 | M179: 300.88 | N179: 75.22 | O179: 75.22 | P179: 451.32
A180: 178 | B180: ▲ | C180: 断路器 | D180: 电气配件 | E180: 施耐德/西门子/ABB | F180: 1P+N 10A D型 | G180: 4 | H180: 1 | I180: 1 | J180: 6 | K180: 个 | L180: 84.07 | M180: 336.28 | N180: 84.07 | O180: 84.07 | P180: 504.42
A181: 179 | B181: ▲ | C181: 断路器 | D181: 电气配件 | E181: 施耐德/西门子/ABB | F181: 1P+N 16A D型 | G181: 4 | H181: 1 | I181: 1 | J181: 6 | K181: 个 | L181: 88.50 | M181: 354.00 | N181: 88.50 | O181: 88.50 | P181: 531.00
A182: 180 | B182: ▲ | C182: 断路器 | D182: 电气配件 | E182: 施耐德/西门子/ABB | F182: 1P+N 20A D型 | G182: 4 | H182: 1 | I182: 1 | J182: 6 | K182: 个 | L182: 94.69 | M182: 378.76 | N182: 94.69 | O182: 94.69 | P182: 568.14
A183: 181 | B183: ▲ | C183: 断路器 | D183: 电气配件 | E183: 施耐德/西门子/ABB | F183: 1P+N 25A D型 | G183: 4 | H183: 1 | I183: 1 | J183: 6 | K183: 个 | L183: 105.10 | M183: 420.40 | N183: 105.10 | O183: 105.10 | P183: 630.60
A184: 182 | B184: ▲ | C184: 断路器 | D184: 电气配件 | E184: 施耐德/西门子/ABB | F184: 1P+N 32A D型 | G184: 4 | H184: 1 | I184: 1 | J184: 6 | K184: 个 | L184: 108.37 | M184: 433.48 | N184: 108.37 | O184: 108.37 | P184: 650.22
A185: 183 | B185: ▲ | C185: 断路器 | D185: 电气配件 | E185: 施耐德/西门子/ABB | F185: 1P+N 40A D型 | G185: 4 | H185: 1 | I185: 1 | J185: 6 | K185: 个 | L185: 128.32 | M185: 513.28 | N185: 128.32 | O185: 128.32 | P185: 769.92
A186: 184 | B186: ▲ | C186: 断路器 | D186: 电气配件 | E186: 施耐德/西门子/ABB | F186: 2P 6A D型 | G186: 4 | H186: 1 | I186: 1 | J186: 6 | K186: 个 | L186: 76.99 | M186: 307.96 | N186: 76.99 | O186: 76.99 | P186: 461.94
A187: 185 | B187: ▲ | C187: 断路器 | D187: 电气配件 | E187: 施耐德/西门子/ABB | F187: 2P 10A D型 | G187: 4 | H187: 1 | I187: 1 | J187: 6 | K187: 个 | L187: 84.07 | M187: 336.28 | N187: 84.07 | O187: 84.07 | P187: 504.42
A188: 186 | B188: ▲ | C188: 断路器 | D188: 电气配件 | E188: 施耐德/西门子/ABB | F188: 2P 16A C型 | G188: 4 | H188: 1 | I188: 1 | J188: 6 | K188: 个 | L188: 91.15 | M188: 364.60 | N188: 91.15 | O188: 91.15 | P188: 546.90
A189: 187 | B189: ▲ | C189: 断路器 | D189: 电气配件 | E189: 施耐德/西门子/ABB | F189: 2P 20A C型 | G189: 4 | H189: 1 | I189: 1 | J189: 6 | K189: 个 | L189: 95.58 | M189: 382.32 | N189: 95.58 | O189: 95.58 | P189: 573.48
A190: 188 | B190: ▲ | C190: 断路器 | D190: 电气配件 | E190: 施耐德/西门子/ABB | F190: 2P 25A C型 | G190: 4 | H190: 1 | I190: 1 | J190: 6 | K190: 个 | L190: 99.12 | M190: 396.48 | N190: 99.12 | O190: 99.12 | P190: 594.72
A191: 189 | B191: ▲ | C191: 断路器 | D191: 电气配件 | E191: 施耐德/西门子/ABB | F191: 2P 32A C型 | G191: 4 | H191: 1 | I191: 1 | J191: 6 | K191: 个 | L191: 109.73 | M191: 438.92 | N191: 109.73 | O191: 109.73 | P191: 658.38
A192: 190 | B192: ▲ | C192: 断路器 | D192: 电气配件 | E192: 施耐德/西门子/ABB | F192: 2P 40A D型 | G192: 4 | H192: 1 | I192: 1 | J192: 6 | K192: 个 | L192: 113.27 | M192: 453.08 | N192: 113.27 | O192: 113.27 | P192: 679.62
A193: 191 | B193: ▲ | C193: 断路器 | D193: 电气配件 | E193: 施耐德/西门子/ABB | F193: 2P 50A D型 | G193: 4 | H193: 1 | I193: 1 | J193: 6 | K193: 个 | L193: 119.47 | M193: 477.88 | N193: 119.47 | O193: 119.47 | P193: 716.82
A194: 192 | B194: ▲ | C194: 断路器 | D194: 电气配件 | E194: 施耐德/西门子/ABB | F194: 2P 63A D型 | G194: 1 | H194: 1 | I194: 1 | J194: 3 | K194: 个 | L194: 132.74 | M194: 132.74 | N194: 132.74 | O194: 132.74 | P194: 398.22
A195: 193 | B195: ▲ | C195: 断路器 | D195: 电气配件 | E195: 施耐德/西门子/ABB | F195: 2P 80A D型 | G195: 1 | H195: 1 | I195: 1 | J195: 3 | K195: 个 | L195: 146.02 | M195: =L195*G195 -> 146.02 | N195: =L195*H195 -> 146.02 | O195: 146.02 | P195: 438.06
A196: 194 | B196: ▲ | C196: 断路器 | D196: 电气配件 | E196: 施耐德/西门子/ABB | F196: 2P 100A D型 | G196: 1 | H196: 0 | I196: 1 | J196: =G196+H196+I196 -> 2 | K196: 个 | L196: 199.12 | M196: 199.12 | N196: 0.00 | O196: =I196*L196 -> 199.12 | P196: =M196+N196+O196 -> 398.24
A197: 195 | B197: ▲ | C197: 断路器 | D197: 电气配件 | E197: 施耐德/西门子/ABB | F197: 2P 125A D型 | G197: 1 | H197: 0 | I197: 1 | J197: 2 | K197: 个 | L197: 234.51 | M197: 234.51 | N197: 0.00 | O197: 234.51 | P197: 469.02
A198: 196 | B198: ▲ | C198: 断路器 | D198: 电气配件 | E198: 施耐德/西门子/ABB | F198: 3P 10A D型 | G198: 4 | H198: 1 | I198: 1 | J198: 6 | K198: 个 | L198: 106.19 | M198: 424.76 | N198: 106.19 | O198: 106.19 | P198: 637.14
A199: 197 | B199: ▲ | C199: 断路器 | D199: 电气配件 | E199: 施耐德/西门子/ABB | F199: 3P 16A D型 | G199: 4 | H199: 1 | I199: 1 | J199: 6 | K199: 个 | L199: 110.62 | M199: 442.48 | N199: 110.62 | O199: 110.62 | P199: 663.72
A200: 198 | B200: ▲ | C200: 断路器 | D200: 电气配件 | E200: 施耐德/西门子/ABB | F200: 3P 20A D型 | G200: 4 | H200: 1 | I200: 1 | J200: 6 | K200: 个 | L200: 114.16 | M200: 456.64 | N200: 114.16 | O200: 114.16 | P200: 684.96
... 1152 more rows

Sheet Sheet1
D2: 3683.8 | E2: =D2+105.65 -> 3789.45 | F2: 3789.45
D3: 4469.15 | E3: =D3+105.65 -> 4574.8 | F3: 4574.8
D4: 3119.93 | E4: 3225.58 | F4: 3225.58
D5: 2988.85 | E5: 3094.5 | F5: 3094.5
D6: 983.1 | E6: 1088.75 | F6: 1088.75
D7: 1073.5 | E7: 1179.15 | F7: 1179.15
D8: 3254.4 | E8: 3360.05 | F8: 3360.05
D9: 2582.05 | E9: 2687.7 | F9: 2687.7
